[Event "Championnat du monde jeunes U12F"]
[Date "2024.11.18"]
[White "Ivaschenko, Anna"]
[Black "Venskaya, Nika"]
[WhiteElo "1732"]
[BlackElo "1871"]
[Round "4.10"]
[Result "0-1"]
[TimeControl "5400+30"]

1. d4 {[%clk 1:30:58]} 1... Nf6 {[%clk 1:30:53]} 2. Nf3 {[%clk 1:31:24]} 2... g6
{[%clk 1:31:18]} 3. c4 {[%clk 1:31:50]} 3... Bg7 {[%clk 1:31:36]} 4. g3 {[%clk
1:32:16]} 4... O-O {[%clk 1:31:54]} 5. Bg2 {[%clk 1:32:36]} 5... d6 {[%clk
1:32:12]} 6. O-O {[%clk 1:32:23]} 6... Nc6 {[%clk 1:32:24]} 7. d5 {[%clk
1:32:42]} 7... Na5 {[%clk 1:32:39]} 8. Nfd2 {[%clk 1:32:58]} 8... c5 {[%clk
1:32:51]} 9. a3 {[%clk 1:33:21]} 9... b6 {[%clk 1:32:04]} 10. b4 {[%clk
1:33:11]} 10... Nb7 {[%clk 1:24:26]} 11. Bb2 {[%clk 1:33:26]} 11... Rb8 {[%clk
1:18:06]} 12. b5 {[%clk 1:19:23]} 12... e6 {[%clk 1:13:04]} 13. Nc3 {[%clk
1:14:05]} 13... Re8 {[%clk 1:05:45]} 14. e4 {[%clk 1:10:44]} 14... exd5 {[%clk
1:04:35]} 15. cxd5 {[%clk 1:06:07]} 15... Na5 {[%clk 1:01:29]} 16. Re1 {[%clk
1:00:38]} 16... Bd7 {[%clk 0:44:01]} 17. h3 {[%clk 0:49:49]} 17... Nh5 {[%clk
0:39:37]} 18. Rb1 {[%clk 0:27:56]} 18... Qc8 {[%clk 0:17:51]} 19. Kh2 {[%clk
0:25:59]} 19... Bd4 {[%clk 0:17:57]} 20. Qf3 {[%clk 0:24:38]} 20... Ng7 {[%clk
0:15:29]} 21. Ne2 {[%clk 0:23:24]} 21... Bxb2 {[%clk 0:15:42]} 22. Rxb2 {[%clk
0:23:38]} 22... Qd8 {[%clk 0:10:03]} 23. Nc3 {[%clk 0:20:58]} 23... h5 {[%clk
0:04:11]} 24. Qf4 {[%clk 0:18:47]} 24... Qe7 {[%clk 0:03:41]} 25. Nf3 {[%clk
0:18:14]} 25... f6 {[%clk 0:02:28]} 26. Qh6 {[%clk 0:15:34]} 26... g5 {[%clk
0:01:22]} 27. e5 {[%clk 0:12:31]} 27... dxe5 {[%clk 0:01:29]} 28. d6 {[%clk
0:10:04]} 28... Qf7 {[%clk 0:01:37]} 29. Ne4 {[%clk 0:10:07]} 29... Re6 {[%clk
0:01:26]} 30. Nfxg5 {[%clk 0:05:21]} 30... fxg5 {[%clk 0:01:35]} 31. Qxg5 {[%clk
0:05:40]} 31... Rg6 {[%clk 0:01:23]} 32. Qxe5 {[%clk 0:05:23]} 32... Nc4 {[%clk
0:01:26]} 0-1

[Variant "Standard"]
[Site "Europe Echecs"]

[Event "Championnat du monde jeunes U12F"]
[Date "2024.11.18"]
[White "Li, Peishan"]
[Black "Tong Thai Hoang An"]
[WhiteElo "1729"]
[BlackElo "1869"]
[Round "4.11"]
[Result "1/2-1/2"]
[TimeControl "5400+30"]

1. e4 {[%clk 1:30:57]} 1... c6 {[%clk 1:30:53]} 2. d4 {[%clk 1:31:19]} 2... d5
{[%clk 1:31:17]} 3. Nd2 {[%clk 1:31:45]} 3... dxe4 {[%clk 1:31:39]} 4. Nxe4
{[%clk 1:32:12]} 4... Bf5 {[%clk 1:32:03]} 5. Ng3 {[%clk 1:32:37]} 5... Bg6
{[%clk 1:32:26]} 6. Nf3 {[%clk 1:33:03]} 6... Nd7 {[%clk 1:32:47]} 7. h4 {[%clk
1:33:28]} 7... h6 {[%clk 1:33:07]} 8. h5 {[%clk 1:33:55]} 8... Bh7 {[%clk
1:33:17]} 9. Bd3 {[%clk 1:34:21]} 9... Bxd3 {[%clk 1:33:39]} 10. Qxd3 {[%clk
1:34:48]} 10... e6 {[%clk 1:33:54]} 11. Bd2 {[%clk 1:35:04]} 11... Ngf6 {[%clk
1:34:16]} 12. O-O-O {[%clk 1:35:26]} 12... Be7 {[%clk 1:34:28]} 13. Ne4 {[%clk
1:35:33]} 13... Nxe4 {[%clk 1:31:44]} 14. Qxe4 {[%clk 1:35:58]} 14... Nf6 {[%clk
1:32:06]} 15. Qe2 {[%clk 1:32:50]} 15... Qd5 {[%clk 1:30:18]} 16. c4 {[%clk
1:27:37]} 16... Qe4 {[%clk 1:29:26]} 17. Qxe4 {[%clk 1:24:12]} 17... Nxe4 {[%clk
1:29:46]} 18. Be3 {[%clk 1:24:29]} 18... f5 {[%clk 1:28:12]} 19. Nd2 {[%clk
1:09:55]} 19... Nf6 {[%clk 1:20:30]} 20. Nf3 {[%clk 1:03:04]} 20... Ng4 {[%clk
1:15:17]} 21. Ne5 {[%clk 1:01:20]} 21... Nxe3 {[%clk 1:11:17]} 22. fxe3 {[%clk
1:01:43]} 22... Bg5 {[%clk 1:09:15]} 23. Kd2 {[%clk 1:01:06]} 23... f4 {[%clk
0:58:17]} 24. exf4 {[%clk 0:35:37]} 24... Bxf4+ {[%clk 0:58:40]} 25. Ke2 {[%clk
0:36:05]} 25... Bxe5 {[%clk 0:44:19]} 26. dxe5 {[%clk 0:36:30]} 26... Rd8 {[%clk
0:44:35]} 27. Rxd8+ {[%clk 0:22:39]} 27... Kxd8 {[%clk 0:44:56]} 28. b3 {[%clk
0:22:38]} 28... Ke7 {[%clk 0:39:46]} 29. Rh3 {[%clk 0:17:21]} 29... Rd8 {[%clk
0:37:04]} 30. Rd3 {[%clk 0:17:42]} 1/2-1/2

[Variant "Standard"]
[Site "Europe Echecs"]

[Event "Championnat du monde jeunes U12F"]
[Date "2024.11.18"]
[White "Xia, Miaoyan"]
[Black "Ahmed Mohamed, Zakaa"]
[WhiteElo "1711"]
[BlackElo "1866"]
[Round "4.12"]
[Result "1-0"]
[TimeControl "5400+30"]

1. e4 {[%clk 1:30:56]} 1... e5 {[%clk 1:30:58]} 2. Nf3 {[%clk 1:31:20]} 2... d6
{[%clk 1:31:23]} 3. d4 {[%clk 1:31:44]} 3... Nd7 {[%clk 1:31:48]} 4. Bc4 {[%clk
1:32:00]} 4... c6 {[%clk 1:32:14]} 5. O-O {[%clk 1:31:58]} 5... Be7 {[%clk
1:32:40]} 6. dxe5 {[%clk 1:32:16]} 6... dxe5 {[%clk 1:33:01]} 7. Ng5 {[%clk
1:31:52]} 7... Nh6 {[%clk 1:32:47]} 8. Ne6 {[%clk 1:24:07]} 8... fxe6 {[%clk
1:30:30]} 9. Bxh6 {[%clk 1:24:24]} 9... O-O {[%clk 1:29:22]} 10. Qg4 {[%clk
1:23:36]} 10... Bf6 {[%clk 1:28:53]} 11. Bxe6+ {[%clk 1:23:56]} 11... Kh8 {[%clk
1:29:02]} 12. Rd1 {[%clk 1:23:19]} 12... Qb6 {[%clk 1:25:28]} 13. b3 {[%clk
1:05:03]} 13... gxh6 {[%clk 1:21:26]} 14. Bxd7 {[%clk 1:04:56]} 14... Bg5 {[%clk
1:21:44]} 15. Bf5 {[%clk 1:04:02]} 15... Bxf5 {[%clk 1:14:58]} 16. exf5 {[%clk
1:04:24]} 16... Rad8 {[%clk 1:12:55]} 17. Nc3 {[%clk 1:03:13]} 17... Qc5 {[%clk
1:08:07]} 18. Ne4 {[%clk 0:59:38]} 18... Qxc2 {[%clk 1:04:11]} 19. h4 {[%clk
0:58:25]} 19... Bxh4 {[%clk 0:45:54]} 20. f6 {[%clk 0:57:26]} 20... Rxd1+ {[%clk
0:41:40]} 21. Rxd1 {[%clk 0:57:40]} 21... Bg5 {[%clk 0:42:02]} 22. Qd7 {[%clk
0:57:13]} 22... Bxf6 {[%clk 0:41:16]} 23. Nxf6 {[%clk 0:57:16]} 23... Rxf6
{[%clk 0:41:33]} 24. Qe8+ {[%clk 0:57:29]} 24... Kg7 {[%clk 0:41:41]} 25. Rd7+
{[%clk 0:57:51]} 25... Rf7 {[%clk 0:42:02]} 26. Qxf7+ {[%clk 0:58:15]} 26... Kh8
{[%clk 0:42:27]} 27. Rd8# {[%clk 0:58:40]} 1-0

[Variant "Standard"]
[Site "Europe Echecs"]

[Event "Championnat du monde jeunes U12F"]
[Date "2024.11.18"]
[White "Gailevska, Milana"]
[Black "Tran Le Vy"]
[WhiteElo "1698"]
[BlackElo "1854"]
[Round "4.13"]
[Result "0-1"]
[TimeControl "5400+30"]

1. d4 {[%clk 1:30:57]} 1... d5 {[%clk 1:30:44]} 2. Bf4 {[%clk 1:31:19]} 2... c5
{[%clk 1:31:02]} 3. e3 {[%clk 1:31:32]} 3... Nc6 {[%clk 1:31:24]} 4. c3 {[%clk
1:31:00]} 4... cxd4 {[%clk 1:31:12]} 5. exd4 {[%clk 1:31:23]} 5... Nf6 {[%clk
1:31:35]} 6. Nd2 {[%clk 1:31:33]} 6... g6 {[%clk 1:31:23]} 7. h3 {[%clk
1:31:17]} 7... Bg7 {[%clk 1:31:29]} 8. Ngf3 {[%clk 1:31:17]} 8... O-O {[%clk
1:27:10]} 9. Be2 {[%clk 1:31:09]} 9... b6 {[%clk 1:25:15]} 10. O-O {[%clk
1:30:57]} 10... Bb7 {[%clk 1:25:31]} 11. Re1 {[%clk 1:29:52]} 11... Ne4 {[%clk
1:12:43]} 12. Bd3 {[%clk 1:20:48]} 12... f5 {[%clk 1:04:34]} 13. Ng5 {[%clk
0:59:49]} 13... Qd7 {[%clk 0:46:43]} 14. f3 {[%clk 0:57:46]} 14... h6 {[%clk
0:38:20]} 15. fxe4 {[%clk 0:49:28]} 15... fxe4 {[%clk 0:34:40]} 16. Ngxe4 {[%clk
0:46:58]} 16... dxe4 {[%clk 0:34:16]} 17. Bc4+ {[%clk 0:47:17]} 17... Kh7 {[%clk
0:32:47]} 18. Bg3 {[%clk 0:45:56]} 18... Nxd4 {[%clk 0:22:56]} 19. Nxe4 {[%clk
0:41:16]} 19... Qc6 {[%clk 0:21:10]} 20. cxd4 {[%clk 0:37:13]} 20... Qxc4 {[%clk
0:21:24]} 21. Kh1 {[%clk 0:24:09]} 21... Rad8 {[%clk 0:16:45]} 22. Rc1 {[%clk
0:18:11]} 22... Qb4 {[%clk 0:11:21]} 23. Qe2 {[%clk 0:16:10]} 23... Rxd4 {[%clk
0:10:53]} 24. Nc3 {[%clk 0:14:00]} 24... Rd7 {[%clk 0:10:54]} 25. Qe6 {[%clk
0:12:41]} 25... Rd2 {[%clk 0:10:13]} 26. Qxe7 {[%clk 0:10:21]} 26... Bxg2+
{[%clk 0:10:14]} 27. Kg1 {[%clk 0:10:41]} 27... Qd4+ {[%clk 0:10:19]} 28. Re3
{[%clk 0:09:56]} 28... Rf3 {[%clk 0:10:14]} 29. Re1 {[%clk 0:08:46]} 29... Rxg3
{[%clk 0:10:35]} 30. Kh2 {[%clk 0:07:01]} 30... Bc6+ {[%clk 0:10:48]} 31. R3e2
{[%clk 0:03:53]} 31... Rg2+ {[%clk 0:11:02]} 32. Rxg2 {[%clk 0:03:30]} 32...
Rxg2+ {[%clk 0:11:24]} 33. Kh1 {[%clk 0:03:55]} 33... Rg1+ {[%clk 0:11:46]} 34.
Kh2 {[%clk 0:04:11]} 34... Qf2# {[%clk 0:12:08]} 0-1

[Variant "Standard"]
[Site "Europe Echecs"]

[Event "Championnat du monde jeunes U12F"]
[Date "2024.11.18"]
[White "Xue, Tianhao"]
[Black "Bohatyrova, Mariia"]
[WhiteElo "1835"]
[BlackElo "1722"]
[Round "4.14"]
[Result "1-0"]
[TimeControl "5400+30"]

1. e4 {[%clk 1:30:58]} 1... c5 {[%clk 1:30:57]} 2. Nf3 {[%clk 1:31:24]} 2... d6
{[%clk 1:31:19]} 3. d4 {[%clk 1:31:50]} 3... cxd4 {[%clk 1:31:43]} 4. Nxd4
{[%clk 1:32:17]} 4... Nf6 {[%clk 1:32:06]} 5. Nc3 {[%clk 1:32:43]} 5... g6
{[%clk 1:32:22]} 6. Be3 {[%clk 1:33:08]} 6... Nc6 {[%clk 1:31:32]} 7. f3 {[%clk
1:31:58]} 7... h5 {[%clk 1:31:42]} 8. Qd2 {[%clk 1:32:19]} 8... Nxd4 {[%clk
1:31:53]} 9. Bxd4 {[%clk 1:32:06]} 9... Bh6 {[%clk 1:32:12]} 10. Be3 {[%clk
1:30:58]} 10... Bxe3 {[%clk 1:32:31]} 11. Qxe3 {[%clk 1:31:23]} 11... Be6 {[%clk
1:32:50]} 12. Bb5+ {[%clk 1:30:24]} 12... Kf8 {[%clk 1:33:09]} 13. h3 {[%clk
1:29:07]} 13... Qa5 {[%clk 1:30:50]} 14. O-O {[%clk 1:26:04]} 14... Rc8 {[%clk
1:29:58]} 15. Bd3 {[%clk 1:23:53]} 15... Qc5 {[%clk 1:29:14]} 16. Qxc5 {[%clk
1:22:10]} 16... Rxc5 {[%clk 1:29:37]} 17. f4 {[%clk 1:22:17]} 17... Kg7 {[%clk
1:19:38]} 18. Rae1 {[%clk 1:18:54]} 18... Rhc8 {[%clk 1:13:22]} 19. Kf2 {[%clk
1:13:52]} 19... a6 {[%clk 1:01:17]} 20. a4 {[%clk 1:08:52]} 20... Bd7 {[%clk
0:55:20]} 21. Ke3 {[%clk 1:00:50]} 21... h4 {[%clk 0:30:20]} 22. Ra1 {[%clk
0:55:51]} 22... g5 {[%clk 0:23:36]} 23. f5 {[%clk 0:50:40]} 23... Re5 {[%clk
0:19:28]} 24. Kd4 {[%clk 0:40:47]} 24... Rec5 {[%clk 0:10:13]} 25. Rf3 {[%clk
0:30:47]} 25... Nh5 {[%clk 0:05:53]} 26. Nd5 {[%clk 0:29:57]} 26... Kf8 {[%clk
0:02:22]} 27. b4 {[%clk 0:28:16]} 27... Rxd5+ {[%clk 0:01:12]} 28. exd5 {[%clk
0:28:24]} 28... Nf4 {[%clk 0:00:53]} 29. c3 {[%clk 0:26:49]} 29... f6 {[%clk
0:00:46]} 30. Rf2 {[%clk 0:23:55]} 30... Kf7 {[%clk 0:00:45]} 31. c4 {[%clk
0:23:39]} 31... b6 {[%clk 0:00:46]} 32. Be4 {[%clk 0:22:45]} 32... Nh5 {[%clk
0:00:38]} 33. a5 {[%clk 0:21:04]} 33... b5 {[%clk 0:00:52]} 34. c5 {[%clk
0:20:41]} 34... Ng3 {[%clk 0:00:36]} 35. c6 {[%clk 0:19:36]} 35... Be8 {[%clk
0:00:59]} 36. Ra3 {[%clk 0:19:41]} 36... Nxe4 {[%clk 0:00:36]} 37. Kxe4 {[%clk
0:20:08]} 37... Rc7 {[%clk 0:00:53]} 38. g3 {[%clk 0:20:33]} 38... hxg3 {[%clk
0:00:42]} 39. Rxg3 {[%clk 0:20:56]} 39... Bxc6 {[%clk 0:00:33]} 40. dxc6 {[%clk
0:21:08]} 40... Rxc6 {[%clk 0:00:59]} 41. Kd3 {[%clk 0:21:18]} 41... Rc4 {[%clk
0:00:51]} 42. Rg4 {[%clk 0:21:24]} 42... d5 {[%clk 0:00:33]} 43. Rxc4 {[%clk
0:21:47]} 43... dxc4+ {[%clk 0:00:52]} 44. Kc3 {[%clk 0:22:12]} 44... e6 {[%clk
0:00:57]} 45. fxe6+ {[%clk 0:22:22]} 45... Kxe6 {[%clk 0:01:21]} 46. Kd4 {[%clk
0:22:46]} 46... f5 {[%clk 0:01:10]} 47. Re2+ {[%clk 0:22:31]} 47... Kf6 {[%clk
0:01:12]} 48. Re8 {[%clk 0:20:52]} 48... g4 {[%clk 0:00:52]} 49. hxg4 {[%clk
0:21:19]} 49... fxg4 {[%clk 0:01:18]} 50. Ke4 {[%clk 0:21:41]} 50... Kg5 {[%clk
0:00:43]} 51. Rg8+ {[%clk 0:22:07]} 51... Kf6 {[%clk 0:00:31]} 52. Rxg4 {[%clk
0:22:30]} 52... Ke6 {[%clk 0:00:33]} 53. Rg6+ {[%clk 0:22:55]} 53... Kd7 {[%clk
0:00:44]} 54. Rxa6 {[%clk 0:23:20]} 54... Kc7 {[%clk 0:00:58]} 55. Rb6 {[%clk
0:23:45]} 55... Kc8 {[%clk 0:01:03]} 56. Rxb5 {[%clk 0:24:06]} 56... Kc7 {[%clk
0:01:25]} 57. Rc5+ {[%clk 0:24:32]} 57... Kb7 {[%clk 0:01:42]} 58. Rxc4 {[%clk
0:24:59]} 58... Ka7 {[%clk 0:01:39]} 59. b5 {[%clk 0:25:26]} 59... Kb7 {[%clk
0:02:04]} 60. a6+ {[%clk 0:25:53]} 60... Ka7 {[%clk 0:02:27]} 61. Rc7+ {[%clk
0:26:09]} 61... Ka8 {[%clk 0:02:42]} 62. b6 {[%clk 0:26:24]} 62... Kb8 {[%clk
0:03:07]} 63. Rh7 1-0

[Variant "Standard"]
[Site "Europe Echecs"]

[Event "Championnat du monde jeunes U12F"]
[Date "2024.11.18"]
[White "Xu, Luna Yuexiu"]
[Black "Tursunalieva, Nurelina"]
[WhiteElo "1821"]
[BlackElo "1701"]
[Round "4.15"]
[Result "1-0"]
[TimeControl "5400+30"]

1. e4 {[%clk 1:30:57]} 1... c5 {[%clk 1:30:57]} 2. Nf3 {[%clk 1:31:18]} 2... d6
{[%clk 1:31:23]} 3. d4 {[%clk 1:31:43]} 3... cxd4 {[%clk 1:31:50]} 4. Nxd4
{[%clk 1:32:07]} 4... Nf6 {[%clk 1:32:14]} 5. Nc3 {[%clk 1:32:32]} 5... g6
{[%clk 1:32:35]} 6. Be3 {[%clk 1:32:46]} 6... Bg7 {[%clk 1:32:56]} 7. f3 {[%clk
1:33:00]} 7... a6 {[%clk 1:30:57]} 8. Bc4 {[%clk 1:33:10]} 8... Qc7 {[%clk
1:27:52]} 9. Bb3 {[%clk 1:32:49]} 9... Nbd7 {[%clk 1:26:37]} 10. Qd2 {[%clk
1:30:01]} 10... Nc5 {[%clk 1:17:59]} 11. O-O-O {[%clk 1:27:32]} 11... b5 {[%clk
1:15:05]} 12. Bh6 {[%clk 1:23:04]} 12... O-O {[%clk 1:10:26]} 13. g4 {[%clk
1:19:42]} 13... b4 {[%clk 0:56:01]} 14. Nce2 {[%clk 1:18:35]} 14... a5 {[%clk
0:54:54]} 15. Bd5 {[%clk 1:14:29]} 15... Bb7 {[%clk 0:47:32]} 16. Bxb7 {[%clk
1:14:35]} 16... Qxb7 {[%clk 0:43:47]} 17. h4 {[%clk 1:13:29]} 17... Rfc8 {[%clk
0:35:38]} 18. Bxg7 {[%clk 1:12:46]} 18... Kxg7 {[%clk 0:33:52]} 19. h5 {[%clk
1:12:16]} 19... b3 {[%clk 0:25:19]} 20. Nxb3 {[%clk 1:10:55]} 20... Nxb3+ {[%clk
0:22:26]} 21. axb3 {[%clk 1:11:18]} 21... a4 {[%clk 0:15:14]} 22. b4 {[%clk
1:11:03]} 22... a3 {[%clk 0:14:27]} 23. b3 {[%clk 1:11:16]} 23... Rab8 {[%clk
0:03:55]} 24. hxg6 {[%clk 1:10:57]} 24... fxg6 {[%clk 0:02:53]} 25. Qh6+ {[%clk
1:09:41]} 25... Kg8 {[%clk 0:02:11]} 26. g5 {[%clk 0:57:24]} 26... Nh5 {[%clk
0:02:23]} 27. Rxh5 {[%clk 0:57:49]} 27... gxh5 {[%clk 0:02:43]} 28. g6 {[%clk
0:58:07]} 28... e6 {[%clk 0:00:45]} 29. gxh7+ {[%clk 0:58:30]} 29... Kh8 {[%clk
0:00:39]} 30. Nf4 {[%clk 0:58:31]} 30... Qxh7 {[%clk 0:00:43]} 31. Ng6+ {[%clk
0:58:28]} 31... Kg8 {[%clk 0:00:40]} 32. Qg5 {[%clk 0:57:56]} 32... Qg7 {[%clk
0:00:38]} 33. Ne7+ {[%clk 0:56:14]} 33... Kh7 {[%clk 0:00:34]} 34. Qxh5+ {[%clk
0:56:10]} 34... Qh6+ {[%clk 0:00:50]} 35. Qxh6+ {[%clk 0:56:37]} 35... Kxh6
{[%clk 0:01:13]} 36. Nxc8 {[%clk 0:57:03]} 36... Rxc8 {[%clk 0:01:13]} 37. Rxd6
{[%clk 0:57:27]} 37... Rc3 {[%clk 0:00:34]} 38. Rxe6+ {[%clk 0:57:47]} 38... Kg5
{[%clk 0:00:56]} 39. Ra6 {[%clk 0:58:10]} 39... Rxf3 {[%clk 0:01:10]} 40. Rxa3
{[%clk 0:58:34]} 40... Kf4 {[%clk 0:01:26]} 41. Ra8 {[%clk 0:58:27]} 41... Kxe4
{[%clk 0:01:42]} 42. Kd2 {[%clk 0:58:34]} 42... Kd5 {[%clk 0:01:55]} 43. Rc8
{[%clk 0:58:56]} 43... Rf2+ {[%clk 0:02:04]} 44. Ke3 {[%clk 0:59:16]} 44... Rh2
{[%clk 0:01:43]} 45. b5 {[%clk 0:59:28]} 45... Rh4 {[%clk 0:01:32]} 46. c4+
{[%clk 0:59:38]} 46... Kd6 {[%clk 0:01:44]} 47. b4 {[%clk 0:59:41]} 47... Rh3+
{[%clk 0:00:59]} 48. Kd4 {[%clk 1:00:02]} 48... Rh4+ {[%clk 0:00:35]} 49. Kc3
{[%clk 1:00:27]} 49... Rh3+ {[%clk 0:00:36]} 50. Kb2 {[%clk 1:00:52]} 50... Rh2+
{[%clk 0:00:33]} 51. Kb3 {[%clk 1:01:17]} 51... Rh3+ {[%clk 0:00:55]} 52. Ka4
{[%clk 1:01:43]} 52... Kd7 {[%clk 0:01:11]} 53. Rc6 {[%clk 1:02:06]} 53... Rh1
{[%clk 0:01:17]} 54. Ka5 {[%clk 1:02:16]} 54... Ra1+ {[%clk 0:01:34]} 55. Kb6
{[%clk 1:02:43]} 55... Rb1 {[%clk 0:01:54]} 56. c5 {[%clk 1:02:44]} 56... Rxb4
{[%clk 0:02:06]} 57. Rc7+ {[%clk 1:03:07]} 57... Kd8 {[%clk 0:02:22]} 58. Kc6
{[%clk 1:03:20]} 58... Rxb5 {[%clk 0:00:38]} 59. Rd7+ {[%clk 1:03:46]} 59... Ke8
{[%clk 0:00:36]} 60. Kxb5 {[%clk 1:04:11]} 60... Kxd7 {[%clk 0:00:45]} 61. Kb6
{[%clk 1:04:28]} 61... Kc8 {[%clk 0:00:47]} 62. Kc6 {[%clk 1:04:53]} 1-0

[Variant "Standard"]
[Site "Europe Echecs"]

[Event "Championnat du monde jeunes U12F"]
[Date "2024.11.18"]
[White "Abylaykyzy, Bibisara"]
[Black "Abak, Tuana"]
[WhiteElo "1694"]
[BlackElo "1806"]
[Round "4.16"]
[Result "0-1"]
[TimeControl "5400+30"]

1. d4 {[%clk 1:30:56]} 1... Nf6 {[%clk 1:30:54]} 2. Bf4 {[%clk 1:31:22]} 2... d5
{[%clk 1:31:19]} 3. e3 {[%clk 1:31:47]} 3... c5 {[%clk 1:31:41]} 4. c3 {[%clk
1:31:34]} 4... Nc6 {[%clk 1:30:35]} 5. Nd2 {[%clk 1:31:55]} 5... Qb6 {[%clk
1:30:01]} 6. Qb3 {[%clk 1:31:08]} 6... c4 {[%clk 1:30:13]} 7. Qc2 {[%clk
1:31:30]} 7... g6 {[%clk 1:27:57]} 8. f3 {[%clk 1:28:57]} 8... Be6 {[%clk
1:15:46]} 9. e4 {[%clk 1:27:59]} 9... Qd8 {[%clk 1:16:13]} 10. Ne2 {[%clk
1:21:42]} 10... b5 {[%clk 1:16:41]} 11. Be3 {[%clk 1:21:30]} 11... Bg7 {[%clk
1:12:55]} 12. Nf4 {[%clk 1:21:15]} 12... Qd7 {[%clk 1:12:48]} 13. a4 {[%clk
1:15:35]} 13... b4 {[%clk 1:08:51]} 14. exd5 {[%clk 1:15:32]} 14... Nxd5 {[%clk
1:09:16]} 15. Nxd5 {[%clk 1:15:36]} 15... Bxd5 {[%clk 1:07:08]} 16. Nxc4 {[%clk
1:13:26]} 16... Qe6 {[%clk 1:07:03]} 17. Ne5 {[%clk 1:11:20]} 17... Nxe5 {[%clk
1:06:20]} 18. dxe5 {[%clk 1:11:05]} 18... O-O {[%clk 1:05:15]} 19. Be2 {[%clk
1:09:26]} 19... Bb3 {[%clk 1:03:02]} 20. Qe4 {[%clk 1:05:39]} 20... bxc3 {[%clk
1:02:47]} 21. bxc3 {[%clk 1:05:25]} 21... Bd5 {[%clk 1:02:27]} 22. Qh4 {[%clk
1:02:46]} 22... Bxe5 {[%clk 1:00:51]} 23. Bd4 {[%clk 1:01:42]} 23... Bxd4 {[%clk
1:01:14]} 24. Qxd4 {[%clk 1:02:00]} 24... Rfd8 {[%clk 1:01:36]} 25. Qf2 {[%clk
1:01:55]} 25... Bc4 {[%clk 1:02:04]} 26. Rc1 {[%clk 0:49:20]} 26... Rab8 {[%clk
1:02:27]} 27. O-O {[%clk 0:46:45]} 27... Qxe2 {[%clk 1:02:12]} 28. Qc5 {[%clk
0:43:29]} 28... Rd2 {[%clk 1:02:04]} 29. Rf2 {[%clk 0:04:31]} 29... Rd1+ {[%clk
1:02:33]} 30. Rxd1 {[%clk 0:04:54]} 30... Qxd1+ {[%clk 1:03:00]} 31. Rf1 {[%clk
0:05:16]} 31... Qxf1# {[%clk 1:03:23]} 0-1

[Variant "Standard"]
[Site "Europe Echecs"]

[Event "Championnat du monde jeunes U12F"]
[Date "2024.11.18"]
[White "Illes-Nagy, Nora"]
[Black "Telyuk, Anastasiya"]
[WhiteElo "1803"]
[BlackElo "1603"]
[Round "4.17"]
[Result "1/2-1/2"]
[TimeControl "5400+30"]

1. d4 {[%clk 1:30:59]} 1... Nf6 {[%clk 1:30:51]} 2. c4 {[%clk 1:31:23]} 2... e5
{[%clk 1:31:09]} 3. dxe5 {[%clk 1:31:45]} 3... Ng4 {[%clk 1:31:25]} 4. Bf4
{[%clk 1:31:58]} 4... Nc6 {[%clk 1:31:33]} 5. Nf3 {[%clk 1:32:00]} 5... Bb4+
{[%clk 1:31:45]} 6. Nbd2 {[%clk 1:31:45]} 6... Qe7 {[%clk 1:31:32]} 7. e3 {[%clk
1:31:48]} 7... Ngxe5 {[%clk 1:29:30]} 8. Nxe5 {[%clk 1:32:08]} 8... Nxe5 {[%clk
1:29:20]} 9. Be2 {[%clk 1:31:56]} 9... O-O {[%clk 1:26:23]} 10. O-O {[%clk
1:31:38]} 10... Ng6 {[%clk 1:22:40]} 11. Bg3 {[%clk 1:29:48]} 11... f5 {[%clk
1:13:18]} 12. a3 {[%clk 1:19:03]} 12... Bd6 {[%clk 1:08:47]} 13. Bxd6 {[%clk
1:14:00]} 13... Qxd6 {[%clk 1:08:55]} 14. Nb3 {[%clk 1:04:12]} 14... Qxd1 {[%clk
1:05:28]} 15. Raxd1 {[%clk 1:04:02]} 15... d6 {[%clk 1:04:23]} 16. Nd4 {[%clk
1:00:03]} 16... Bd7 {[%clk 1:00:45]} 17. Bf3 {[%clk 0:57:26]} 17... Rab8 {[%clk
0:56:08]} 18. Bd5+ {[%clk 0:53:13]} 18... Kh8 {[%clk 0:55:39]} 19. g3 {[%clk
0:47:11]} 19... Ne5 {[%clk 0:51:55]} 20. b3 {[%clk 0:42:39]} 20... Rf6 {[%clk
0:46:06]} 21. Ne2 {[%clk 0:33:36]} 21... a6 {[%clk 0:39:54]} 22. Nd4 {[%clk
0:30:41]} 22... h6 {[%clk 0:35:00]} 23. f4 {[%clk 0:24:13]} 23... Nc6 {[%clk
0:28:49]} 24. Rfe1 {[%clk 0:19:40]} 24... Re8 {[%clk 0:23:29]} 25. Kf2 {[%clk
0:16:56]} 25... Re7 {[%clk 0:20:04]} 26. Bf3 {[%clk 0:13:26]} 26... Rf8 {[%clk
0:17:04]} 27. Re2 {[%clk 0:08:46]} 27... Rfe8 {[%clk 0:16:42]} 28. Rde1 {[%clk
0:08:30]} 28... Nxd4 {[%clk 0:16:21]} 29. exd4 {[%clk 0:07:36]} 29... Rxe2+
{[%clk 0:16:41]} 30. Rxe2 {[%clk 0:08:00]} 30... Rxe2+ {[%clk 0:17:01]} 31. Kxe2
{[%clk 0:08:02]} 31... b6 {[%clk 0:15:45]} 32. Kd3 {[%clk 0:07:12]} 32... c5
{[%clk 0:15:14]} 33. Bb7 {[%clk 0:06:23]} 33... a5 {[%clk 0:15:20]} 34. dxc5
{[%clk 0:06:24]} 34... dxc5 {[%clk 0:15:25]} 35. Bd5 {[%clk 0:06:11]} 35... g6
{[%clk 0:14:48]} 36. Kc3 {[%clk 0:06:07]} 36... Kg7 {[%clk 0:13:09]} 37. b4
{[%clk 0:05:53]} 37... g5 {[%clk 0:11:25]} 38. bxa5 {[%clk 0:05:20]} 38... bxa5
{[%clk 0:11:49]} 39. Kd3 {[%clk 0:05:16]} 39... Kf6 {[%clk 0:10:52]} 1/2-1/2

[Variant "Standard"]
[Site "Europe Echecs"]